fUSD/lending_fUSD_20251130
["ID","MTS","AMOUNT","RATE_DAILY","PERIOD"]
[395178702,1764517841147,-751.73,0.00014916,2]
[395178703,1764517841157,-540.83858848,0.00015014,2]
[395178704,1764517841168,-500.0,0.00015051,2]
[395178705,1764517841179,-500.0,0.00015053,2]
[395178706,1764517841190,-150.0,0.00015068,2]
[395178707,1764517841200,-900.0,0.00015068,2]
[395178708,1764517841210,-151.0,0.00015069,2]
[395178709,1764517841222,-500.0,0.00015078,2]
[395178710,1764517842181,-7182.5195709,0.00015137,2]
[395178711,1764517842222,-500.0,0.00015188,2]
[395178712,1764517842232,-500.0,0.0001519,2]
[395178713,1764517842243,-751.73,0.0001519,2]
[395178714,1764517842252,-158.66258758,0.00015205,2]
[395178715,1764517842262,-150.0,0.00015288,2]
[395178716,1764517842272,-150.0,0.00015288,2]
[395178717,1764517842281,-150.0,0.00015288,2]
[395178718,1764517842291,-150.0,0.00015288,2]
[395178719,1764517842301,-150.0,0.00015288,2]
[395178720,1764517842312,-157.84068384,0.00015288,2]
[395178721,1764517842323,-150.0,0.00015288,2]
[395178722,1764517842332,-150.0,0.00015288,2]
[395178723,1764517842342,-150.0,0.00015288,2]
[395178724,1764517842352,-150.0,0.00015288,2]
[395178725,1764517842361,-150.0,0.00015288,2]
[395178726,1764517842371,-150.0,0.00015288,2]
[395178727,1764517842381,-562.62199788,0.00015325,2]
[395178728,1764517842391,-364.93375674,0.00015327,2]
[395178729,1764517842401,-150.0,0.00015409,2]
[395178730,1764517842411,-150.0,0.00015442,2]
[395178731,1764517842421,-150.0,0.00015458,2]
[395178732,1764517842430,-200.0,0.00015464,2]
[395178733,1764517842440,-200.0,0.00015464,2]
[395178734,1764517842449,-500.0,0.00015464,2]
[395178735,1764517842460,-751.73,0.00015464,2]
[395178736,1764517842469,-150.0,0.00015476,2]
[395178737,1764517842479,-540.83858848,0.00015485,2]
[395178738,1764517842490,-7182.5195709,0.0001549,2]
[395178739,1764517842499,-150.0,0.000155,2]
[395178740,1764517842509,-150.0,0.000155,2]
[395178741,1764517842518,-150.0,0.000155,2]
[395178742,1764517842528,-150.0,0.0001553,2]
[395178743,1764517842537,-150.0,0.00015597,2]
[395178744,1764517842547,-151.0,0.00015617,2]
[395178745,1764517842556,-150.0,0.00015627,2]
[395178746,1764517842566,-150.0,0.00015652,2]
[395178747,1764517842580,-150.0,0.00015665,2]
[395178748,1764517842589,-164.79,0.00015671,2]
[395178749,1764517842600,-150.0,0.00015712,2]
[395178750,1764517842611,-150.0,0.00015712,2]
[395178751,1764517842621,-150.0,0.00015712,2]
[395178752,1764517842631,-150.0,0.00015712,2]
[395178753,1764517842641,-751.76,0.00015738,2]
[395178754,1764517842652,-150.0,0.00015751,2]
[395178755,1764517842661,-150.0,0.00015773,2]
[395178756,1764517842671,-150.0,0.00015797,2]
[395178757,1764517842680,-7182.5195709,0.00015842,2]
[395178758,1764517842689,-150.0,0.00015854,2]
[395178759,1764517842699,-150.0,0.00015854,2]
[395178760,1764517842709,-150.0,0.00015894,2]
[395178761,1764517842719,-696.05207389,0.000159,2]
[395178762,1764517842730,-696.05207385,0.000159,2]
[395178763,1764517842741,-696.05207385,0.000159,2]
[395178764,1764517842751,-696.05207385,0.000159,2]
[395178765,1764517842761,-696.05207385,0.000159,2]
[395178766,1764517842771,-696.05207385,0.000159,2]
[395178767,1764517842780,-150.0,0.00015905,2]
[395178768,1764517842790,-150.0,0.00015925,2]
[395178769,1764517842799,-150.0,0.00015925,2]
[395178770,1764517842810,-150.0,0.00015925,2]
[395178771,1764517842819,-540.83858848,0.00015957,2]
[395178772,1764517842828,-433.0,0.00015957,2]
[395178773,1764517842839,-150.0,0.00015967,2]
[395178774,1764517842848,-500.0,0.00015973,2]
[395178775,1764517842859,-500.0,0.00015973,2]
[395178776,1764517842868,-172.14260256,0.00015973,2]
[395178777,1764517842877,-500.0,0.00015973,2]
[395178778,1764517842887,-174.27937181,0.00015973,2]
[395178780,1764517842897,-507.35080236,0.00015973,2]
[395178782,1764517842907,-500.0,0.00015973,2]
[395178784,1764517842917,-506.31065896,0.00015973,2]
[395178785,1764517842926,-161.07388452,0.00015973,2]
[395178787,1764517842936,-500.0,0.00015973,2]
[395178788,1764517842946,-500.0,0.00015973,2]
[395178789,1764517842955,-160.07187961,0.00015973,2]
[395178790,1764517842964,-500.0,0.00015973,2]
[395178791,1764517842975,-500.0,0.00015973,2]
[395178792,1764517842985,-500.0,0.00015973,2]
[395178793,1764517842994,-500.0,0.00015973,2]
[395178794,1764517843004,-500.65013658,0.00015973,2]
[395178795,1764517843013,-622.74851177,0.00015973,2]
[395178796,1764517843022,-500.0,0.00015973,2]
[395178797,1764517843032,-500.0,0.00015973,2]
[395178798,1764517843043,-500.0,0.00015973,2]
[395178799,1764517843052,-157.2860755,0.00015973,2]
[395178800,1764517843062,-500.0,0.00015973,2]
[395178801,1764517843071,-500.0,0.00015973,2]
[395178802,1764517843081,-500.0,0.00015973,2]
[395178803,1764517843090,-500.0,0.00015999,2]
[395178804,1764517843100,-500.0,0.00015999,2]
[395178805,1764517843109,-500.0,0.00015999,2]
[395178806,1764517843118,-519.79569884,0.00015999,2]
[395178807,1764517843128,-500.0,0.00015999,2]
[395178808,1764517843138,-500.0,0.00015999,2]
[395178809,1764517843148,-500.0,0.00015999,2]
[395178810,1764517843158,-500.0,0.00015999,2]
[395178811,1764517843168,-500.0,0.00015999,2]
[395178812,1764517843178,-500.0,0.00015999,2]
[395178813,1764517843187,-500.0,0.00015999,2]
[395178814,1764517843197,-500.0,0.00015999,2]
[395178815,1764517843207,-500.0,0.00015999,2]
[395178816,1764517843216,-500.0,0.00015999,2]
[395178817,1764517843226,-323.68835638,0.00015999,2]
[395178818,1764517843236,-332.12231322,0.00016012,2]
[395178819,1764517843245,-200.0,0.00016012,2]
[395178820,1764517843255,-500.0,0.00016012,2]
[395178821,1764517843264,-150.0,0.00016016,2]
[395178822,1764517843274,-150.0,0.00016043,2]
[395178823,1764517843284,-150.0,0.0001606,2]
[395178824,1764517843293,-500.0,0.00016115,2]
[395178825,1764517843303,-510.75391486,0.00016115,2]
[395178826,1764517843312,-500.0,0.00016115,2]
[395178827,1764517843322,-500.0,0.00016115,2]
[395178828,1764517843331,-412.69296363,0.00016115,2]
[395178829,1764517843341,-540.71917716,0.00016115,2]
[395178830,1764517843351,-500.0,0.00016115,2]
[395178831,1764517843360,-500.0,0.00016115,2]
[395178832,1764517843370,-500.0,0.00016115,2]
[395178833,1764517843379,-500.0,0.00016115,2]
[395178834,1764517843389,-500.0,0.00016115,2]
[395178835,1764517843399,-9999.99,0.00016116,2]
[395178836,1764517843409,-150.0,0.00016137,2]
[395178837,1764517843418,-150.0,0.00016137,2]
[395178838,1764517843428,-150.0,0.00016137,2]
[395178839,1764517843438,-150.0,0.00016137,2]
[395178840,1764517843448,-150.0,0.00016137,2]
[395178841,1764517843457,-150.0,0.00016137,2]
[395178842,1764517843467,-150.0,0.00016137,2]
[395178843,1764517843476,-151.0,0.00016165,2]
[395178844,1764517843485,-375.48512618,0.00016193,2]
[395178845,1764517843494,-7182.5195709,0.00016195,2]
[395178846,1764517843503,-150.0,0.00016214,2]
[395178847,1764517843513,-150.0,0.00016231,2]
[395178848,1764517843525,-150.0,0.00016258,2]
[395178849,1764517843535,-150.0,0.00016307,2]
[395178850,1764517843546,-150.0,0.00016349,2]
[395178851,1764517843555,-150.0,0.00016349,2]
[395178852,1764517843565,-150.0,0.00016349,2]
[395178853,1764517843578,-150.0,0.00016369,2]
[395178854,1764517843587,-150.0,0.0001638,2]
[395178855,1764517843597,-150.0,0.0001642,2]
[395178856,1764517843607,-150.0,0.0001642,2]
[395178857,1764517843615,-540.83858848,0.00016428,2]
[395178858,1764517843625,-500.0,0.00016438,2]
[395178859,1764517843634,-500.0,0.00016438,2]
[395178860,1764517843643,-500.0,0.00016438,2]
[395178861,1764517843653,-500.0,0.00016438,2]
[395178862,1764517843663,-229.36673625,0.00016438,2]
[395178863,1764517843672,-150.0,0.00016438,2]
[395178864,1764517843682,-24677.88,0.00016438,2]
[395178865,1764517843692,-900.0,0.00016438,2]
[395178866,1764517843702,-163.9,0.0001644,2]
[395178867,1764517843712,-163.9,0.0001644,2]
[395178868,1764517843723,-150.0,0.00016477,2]
[395178869,1764517843734,-150.0,0.00016501,2]
[395178870,1764517843744,-505.74952757,0.00016521,2]
[395178871,1764517843753,-500.0,0.00016521,2]
[395178872,1764517843763,-1000.0,0.00016521,2]
[395178873,1764517843773,-1000.0,0.00016521,2]
[395178874,1764517843783,-1000.0,0.00016521,2]
[395178875,1764517843793,-502.84705647,0.00016521,2]
[395178876,1764517843802,-1000.0,0.00016521,2]
[395178877,1764517843812,-151.85572149,0.00016521,2]
[395178878,1764517843823,-696.8967906,0.00016521,2]
[395178879,1764517843833,-520.80397315,0.00016521,2]
[395178880,1764517843842,-457.90842426,0.00016521,2]
[395178881,1764517843851,-1000.0,0.00016521,2]
[395178882,1764517843861,-238.48485765,0.00016521,2]
[395178883,1764517843871,-1000.0,0.00016521,2]
[395178884,1764517843880,-1018.43163791,0.00016521,2]
[395178885,1764517843890,-1000.0,0.00016521,2]
[395178886,1764517843899,-150.0,0.00016523,2]
[395178887,1764517843909,-7182.5195709,0.00016547,2]
[395178888,1764517843920,-207.4,0.00016559,2]
[395178889,1764517843931,-500.0,0.0001656,2]
[395178890,1764517843942,-150.0,0.00016562,2]
[395178891,1764517843953,-150.0,0.00016562,2]
[395178892,1764517843962,-150.0,0.00016562,2]
[395178893,1764517843972,-150.0,0.00016562,2]
[395178894,1764517843981,-150.0,0.00016575,2]
[395178895,1764517843990,-150.0,0.00016609,2]
[395178896,1764517843999,-150.0,0.00016622,2]
[395178897,1764517844008,-150.0,0.00016647,2]
[395178898,1764517844018,-150.0,0.00016677,2]
[395178899,1764517844028,-207.95472836,0.00016712,2]
[395178900,1764517844038,-153.48713579,0.00016712,2]
[395178901,1764517844047,-150.000001,0.00016712,2]
[395178902,1764517844057,-151.49686011,0.00016712,2]
[395178903,1764517844066,-150.0,0.00016712,2]
[395178904,1764517844075,-150.0,0.00016712,2]
[395178905,1764517844084,-500.0,0.00016712,2]
[395178906,1764517844095,-150.0,0.00016712,2]
[395178907,1764517844105,-153.0061579,0.00016712,2]
[395178908,1764517844115,-151.73896267,0.00016712,2]
[395178909,1764517844124,-154.64526929,0.00016712,2]
[395178910,1764517844134,-151.5737728,0.00016712,2]
[395178911,1764517844144,-150.0,0.00016712,2]
[395178912,1764517844154,-150.0,0.00016712,2]
[395178913,1764517844164,-222.75,0.00016712,2]
[395178914,1764517844174,-237.3246584,0.00016713,2]
[395178915,1764517844184,-150.0,0.00016744,2]
[395178916,1764517844193,-150.0,0.00016774,2]
[395178917,1764517844204,-150.0,0.00016774,2]
[395178918,1764517844213,-150.0,0.00016774,2]
[395178921,1764517844223,-150.0,0.00016798,2]
[395178922,1764517844233,-1414.92145539,0.00016811,2]
[395178923,1764517844243,-150.0,0.00016816,2]
[395178924,1764517844253,-7902.97668978,0.0001683,2]
[395178925,1764517844262,-150.0,0.00016832,2]
[395178926,1764517844272,-250.0,0.00016837,2]
[395178927,1764517844282,-150.0,0.00016849,2]
[395178928,1764517844291,-282.03781084,0.00016849,2]
[395178929,1764517844301,-500.0,0.00016849,2]
[395178930,1764517844311,-150.0,0.00016849,2]
[395178931,1764517844321,-170.16025995,0.00016849,2]
[395178932,1764517844331,-150.0,0.00016849,2]
[395178933,1764517844341,-200.0,0.00016864,2]
[395178934,1764517844351,-150.0,0.00016865,2]
[395178935,1764517844360,-160.11734806,0.00016878,2]
[395178936,1764517844369,-303.85802788,0.0001689,2]
[395178937,1764517844379,-7182.5195709,0.000169,2]
[395178938,1764517844389,-226.01017228,0.000169,2]
[395178939,1764517844399,-540.83858848,0.000169,2]
[395178940,1764517844408,-254.08681279,0.000169,2]
[395178941,1764517844418,-278.53400054,0.000169,2]
[395178942,1764517844428,-269.71295789,0.000169,2]
[395178943,1764517844437,-500.0,0.000169,2]
[395178944,1764517844446,-500.0,0.000169,2]
[395178945,1764517844456,-500.0,0.000169,2]
[395178946,1764517844465,-500.0,0.000169,2]
[395178947,1764517844475,-500.0,0.000169,2]
[395178948,1764517844484,-500.0,0.000169,2]
[395178949,1764517844494,-500.0,0.000169,2]
[395178950,1764517844504,-500.0,0.000169,2]
[395178951,1764517844513,-500.0,0.000169,2]
[395178952,1764517844522,-500.0,0.000169,2]
[395178953,1764517844531,-500.0,0.000169,2]
[395178954,1764517844611,-500.0,0.000169,2]
[395178955,1764517844621,-500.0,0.000169,2]
[395178956,1764517844630,-500.0,0.000169,2]
[395178957,1764517844639,-500.0,0.000169,2]
[395178958,1764517844649,-500.0,0.000169,2]
[395178959,1764517844659,-197.92719606,0.000169,2]
[395178960,1764517844667,-1347.0,0.00016959,2]
[395178961,1764517844677,-500.0,0.00016973,2]
[395178962,1764517844687,-162.090508,0.00016973,2]
[395178963,1764517844696,-339.26563356,0.00016973,2]
[395178964,1764517844706,-507.2295556,0.00016973,2]
[395178965,1764517844715,-500.0,0.00016973,2]
[395178966,1764517844724,-500.0,0.00016973,2]
[395178967,1764517844733,-500.0,0.00016973,2]
[395178968,1764517844742,-500.0,0.00016973,2]
[395178969,1764517844751,-500.0,0.00016973,2]
[395178970,1764517844761,-500.0,0.00016973,2]
[395178971,1764517844770,-500.0,0.00016973,2]
[395178972,1764517844780,-500.84139495,0.00016973,2]
[395178973,1764517844790,-500.0,0.00016973,2]
[395178974,1764517844799,-366.95471126,0.00016973,2]
[395178975,1764517844808,-500.0,0.00016973,2]
[395178976,1764517844817,-500.0,0.00016973,2]
[395178977,1764517844827,-500.0,0.00016973,2]
[395178978,1764517844835,-500.0,0.00016973,2]
[395178979,1764517844845,-166.09514249,0.00016973,2]
[395178980,1764517844854,-507.02104113,0.00016973,2]
[395178981,1764517844863,-500.0,0.00016973,2]
[395178982,1764517844872,-500.38978168,0.00016973,2]
[395178983,1764517844883,-500.0,0.00016973,2]
[395178984,1764517844892,-160.104108,0.00016973,2]
[395178985,1764517844901,-500.99004668,0.00016973,2]
[395178986,1764517844910,-317.71167471,0.00016973,2]
[395178987,1764517844920,-161.86969264,0.00016973,2]
[395178988,1764517844930,-500.0,0.00016973,2]
[395178989,1764517844939,-500.0,0.00016973,2]
[395178990,1764517844948,-500.0,0.00016973,2]
[395178991,1764517844957,-500.838144,0.00016973,2]
[395178992,1764517844967,-500.0,0.00016973,2]
[395178993,1764517844976,-165.48144964,0.00016973,2]
[395178994,1764517844985,-500.0,0.00016973,2]
[395178995,1764517844995,-501.16592491,0.00016973,2]
[395178996,1764517845004,-206.77101016,0.00016973,2]
[395178997,1764517845014,-500.0,0.00016973,2]
[395178998,1764517845023,-500.0,0.00016973,2]
[395178999,1764517845032,-500.0,0.00016973,2]
[395179000,1764517845041,-417.99684709,0.00016973,2]
[395179001,1764517845051,-500.0,0.00016973,2]
[395179002,1764517845060,-200.00768026,0.00016973,2]
[395179003,1764517845069,-500.0,0.00016973,2]
[395179004,1764517845078,-648.75055761,0.00016973,2]
[395179005,1764517845088,-215.92719524,0.00016973,2]
[395179006,1764517845098,-500.0,0.00016973,2]
[395179007,1764517845108,-161.11451994,0.00016973,2]
[395179008,1764517845117,-500.0,0.00016973,2]
[395179009,1764517845126,-500.0,0.00016973,2]
[395179010,1764517845135,-160.58104574,0.00016973,2]
[395179011,1764517845144,-500.0,0.00016973,2]
[395179012,1764517845153,-500.0,0.00016973,2]
[395179013,1764517845162,-481.62122434,0.00016973,2]
[395179014,1764517845172,-501.61843285,0.00016973,2]
[395179015,1764517845181,-164.79,0.00016977,2]
[395179016,1764517845191,-500.0,0.00016983,2]
[395179017,1764517845200,-164.38079063,0.00016986,2]
[395179018,1764517845209,-150.0,0.00016986,2]
[395179019,1764517845219,-365.01712022,0.00016986,2]
[395179020,1764517845228,-150.0,0.00016986,2]
[395179021,1764517845238,-150.0,0.00016986,2]
[395179022,1764517845247,-273.54418306,0.00016986,2]
[395179023,1764517845256,-248.7262478,0.00016986,2]
[395179024,1764517845266,-151.67385662,0.00016986,2]
[395179025,1764517845276,-273.57586254,0.00016986,2]
[395179026,1764517845285,-153.99499293,0.00016986,2]
[395179027,1764517845295,-150.0,0.00016986,2]
[395179028,1764517845304,-155.37437988,0.00016986,2]
[395179029,1764517845313,-268.77199815,0.00016986,2]
[395179030,1764517845322,-262.94882049,0.00016986,2]
[395179031,1764517845331,-150.0,0.00016986,2]
[395179032,1764517845341,-155.79512299,0.00016986,2]
[395179033,1764517845350,-164.38079063,0.0001699,2]
[395179034,1764517845359,-151.0,0.00016993,2]
[395179035,1764517845368,-235.04,0.00016995,2]
[395179036,1764517845378,-500.0,0.00016995,2]
[395179037,1764517845387,-8294.5094957,0.00016996,2]
[395179038,1764517845397,-243714.5758086,0.00016996,2]
[395179039,1764517845406,-151.0,0.00016997,2]
[395179040,1764517845416,-500.0,0.00016998,2]
[395179041,1764517845425,-500.0,0.00016998,2]
[395179042,1764517845434,-500.0,0.00016998,2]
[395179043,1764517845443,-500.0,0.00016999,2]
[395179044,1764517845452,-500.0,0.00016999,2]
[395179045,1764517845461,-500.0,0.00016999,2]
[395179046,1764517845471,-500.0,0.00016999,2]
[395179047,1764517845479,-500.0,0.00016999,2]
[395179048,1764517845489,-231.64720255,0.00016999,2]
[395179049,1764517845498,-500.0,0.00016999,2]
[395179050,1764517845507,-500.0,0.00016999,2]
[395179051,1764517845517,-500.0,0.00016999,2]
[395179052,1764517845526,-500.0,0.00016999,2]
[395179053,1764517845535,-500.0,0.00016999,2]
[395179054,1764517845544,-500.0,0.00016999,2]
[395179055,1764517845554,-500.0,0.00016999,2]
[395179056,1764517845563,-500.0,0.00016999,2]
[395179057,1764517845576,-500.0,0.00016999,2]
[395179058,1764517845586,-500.0,0.00016999,2]
[395179059,1764517845595,-500.0,0.00016999,2]
[395179060,1764517845605,-629.74527331,0.00016999,2]
[395179061,1764517845615,-500.0,0.00016999,2]
[395179062,1764517845623,-500.0,0.00016999,2]
[395179063,1764517845633,-509.01062398,0.00016999,2]
[395179064,1764517845642,-500.0,0.00016999,2]
[395179065,1764517845652,-500.0,0.00016999,2]
[395179066,1764517845664,-500.0,0.00016999,2]
[395179067,1764517845678,-500.0,0.00016999,2]
[395179068,1764517845688,-500.0,0.00016999,2]
[395179070,1764517845697,-500.0,0.00016999,2]
[395179072,1764517845707,-500.0,0.00016999,2]
[395179074,1764517845718,-500.0,0.00016999,2]
[395179076,1764517845727,-500.0,0.00016999,2]
[395179077,1764517845736,-500.0,0.00016999,2]
[395179078,1764517845746,-500.0,0.00016999,2]
[395179079,1764517845755,-571.54969762,0.00016999,2]
[395179080,1764517845767,-183.05840034,0.00016999,2]
[395179081,1764517845776,-500.0,0.00016999,2]
[395179082,1764517845785,-500.0,0.00016999,2]
[395179083,1764517845795,-500.0,0.00016999,2]
[395179084,1764517845805,-500.0,0.00016999,2]
[395179085,1764517845814,-500.0,0.00016999,2]
[395179086,1764517845823,-236.346309,0.00016999,2]
[395179087,1764517845832,-300.0,0.00016999,2]
[395179088,1764517845841,-300.0,0.00016999,2]
[395179089,1764517845851,-300.0,0.00016999,2]
[395179090,1764517845860,-8427.7654204,0.00016999,2]
[395179091,1764517845869,-5239052.85478109,0.00017,2]
[395179098,1764517846804,-164.32669918,0.00016973,2]
[395179099,1764517846814,-683.16741963,0.00017,2]
[395179100,1764517846835,-534.58553686,0.00017,2]
[395179101,1764517847022,-527197.4316595,0.00017,2]
[395179102,1764517847031,-3067768.9475538,0.00017,2]
[395179103,1764517847086,-316.03350375,0.00015973,2]
[395179104,1764517847095,-430.08936884,0.00017,2]
[395179105,1764517847151,-219057.264577,0.00017,2]
[395179106,1764517847202,-290.80553076,0.00013528,2]
[395179107,1764517847218,-1012.0,0.00013528,2]
[395179108,1764517847229,-278.49999995,0.00013528,2]
[395179110,1764518266084,167.12,0.00019178,30]
[395179112,1764518557798,5523.0,0.000145,5]
[395179118,1764518793911,157.91,6.48e-05,2]
[395179119,1764518794112,157.91,7.29e-05,2]
[395179120,1764518794297,157.91,8.1e-05,2]
[395179121,1764518794502,157.91,8.909e-05,2]
[395179122,1764518794705,157.91,9.719e-05,2]
[395179123,1764518794901,157.91,0.00010529,2]
[395179124,1764518795132,157.91,0.00011339,2]
[395179126,1764518824432,500.0,0.00012009,2]
[395179173,1764519032993,-157.91,0.00012149,2]
[395179174,1764519033003,-157.91,0.00012959,2]
[395179175,1764519033013,-194.01,0.00013018,3]
[395179176,1764519033022,-256.32,0.000131,2]
[395179177,1764519033031,-166.48591512,0.00013133,2]
[395179178,1764519033040,-703.76957865,0.00013166,2]
[395179179,1764519033063,-887.19042135,0.00013166,2]
[395179180,1764519033072,-150.0,0.00013234,2]
[395179181,1764519033082,-1600.0,0.00013444,2]
[395179182,1764519033091,-944.0,0.00013473,2]
[395179183,1764519033100,-300.0,0.00013473,2]
[395179184,1764519033110,-1200.0,0.00013473,2]
[395179185,1764519033119,-300.0,0.00013475,2]
[395179186,1764519033128,-200.0,0.00013476,2]
[395179187,1764519033138,-150.0,0.00013476,2]
[395179188,1764519033148,-500.0,0.00013476,2]
[395179189,1764519033157,-261.39707966,0.00013476,2]
[395179190,1764519033166,-500.0,0.00013476,2]
[395179191,1764519033176,-500.0,0.00013476,2]
[395179192,1764519033188,-500.0,0.00013476,2]
[395179193,1764519033197,-550.4742128,0.00013476,2]
[395179194,1764519033206,-83056.93828619,0.00013477,2]
[395179195,1764519033218,-1722.90736263,0.00013477,2]
[395179196,1764519033229,-4244.52222613,0.00013477,2]
[395179197,1764519033249,-111229.49475475,0.00013477,2]
[395179198,1764519033259,-9999.99,0.00013477,2]
[395179199,1764519033270,-150.99,0.00013477,2]
[395179200,1764519033280,-1992.15,0.00013477,2]
[395179201,1764519033289,-10769.64,0.00013477,2]
[395179202,1764519033299,-4198.5,0.00013477,2]
[395179203,1764519033308,-13817.95,0.00013618,2]
[395179204,1764519033318,-500.0,0.0001362,2]
[395179205,1764519033328,-500.0,0.0001362,2]
[395179206,1764519033338,-500.0,0.0001362,2]
[395179207,1764519033347,-500.0,0.0001362,2]
[395179208,1764519033356,-500.0,0.0001362,2]
[395179209,1764519033366,-500.0,0.0001362,2]
[395179210,1764519033375,-500.0,0.0001362,2]
[395179211,1764519033384,-500.0,0.0001362,2]
[395179212,1764519033393,-500.0,0.0001362,2]
[395179213,1764519033403,-500.0,0.0001362,2]
[395179214,1764519033413,-500.0,0.0001362,2]
[395179215,1764519033422,-500.0,0.0001362,2]
[395179216,1764519033431,-500.0,0.0001362,2]
[395179217,1764519033439,-500.0,0.0001362,2]
[395179218,1764519033448,-500.0,0.0001362,2]
[395179219,1764519033458,-151.0,0.0001362,2]
[395179220,1764519033467,-500.0,0.0001362,2]
[395179221,1764519033476,-151.0,0.0001362,2]
[395179222,1764519033485,-500.0,0.0001362,2]
[395179223,1764519033494,-151.0,0.0001362,2]
[395179224,1764519033504,-500.0,0.0001362,2]
[395179225,1764519033514,-151.0,0.0001362,2]
[395179226,1764519033523,-500.0,0.0001362,2]
[395179227,1764519033532,-151.0,0.0001362,2]
[395179228,1764519033541,-500.0,0.0001362,2]
[395179229,1764519033550,-151.0,0.0001362,2]
[395179230,1764519033559,-500.0,0.0001362,2]
[395179231,1764519033569,-151.0,0.0001362,2]
[395179232,1764519033579,-500.0,0.0001362,2]
[395179233,1764519033588,-151.0,0.0001362,2]
[395179234,1764519033598,-500.0,0.0001362,2]
[395179235,1764519033608,-151.0,0.0001362,2]
[395179236,1764519033617,-500.0,0.0001362,2]
[395179237,1764519033626,-151.0,0.0001362,2]
[395179238,1764519033636,-500.0,0.0001362,2]
[395179239,1764519033645,-151.0,0.0001362,2]
[395179240,1764519033654,-500.0,0.0001362,2]
[395179241,1764519033663,-151.0,0.0001362,2]
[395179242,1764519033672,-151.0,0.0001362,2]
[395179243,1764519033682,-200.0,0.0001362,2]
[395179244,1764519033693,-219.88,0.0001362,2]
[395179245,1764519033702,-284.95123192,0.00013628,2]
[395179246,1764519033711,-500.0,0.00013698,2]
[395179247,1764519033721,-500.0,0.00013698,2]
[395179248,1764519033731,-500.0,0.00013698,2]
[395179249,1764519033740,-600.0,0.00013699,2]
[395179250,1764519033749,-1000.0,0.00013728,2]
[395179251,1764519033758,-24086.4323,0.00013728,2]
[395179252,1764519033768,-1000.0,0.00013756,2]
[395179253,1764519033777,-82918.52,0.00013773,2]
[395179254,1764519033787,-12884.30530384,0.00013873,2]
[395179255,1764519033796,-219.88,0.00013894,2]
[395179256,1764519033806,-600.0,0.00013973,2]
[395179257,1764519033815,-219.9,0.00014168,2]
[395179258,1764519033825,-600.0,0.00014247,2]
[395179259,1764519033834,-195.0,0.0001441,2]
[395179260,1764519033843,-195.0,0.0001441,2]
[395179261,1764519033852,-12884.30530378,0.00014442,2]
[395179262,1764519033862,-600.0,0.00014521,2]
[395179263,1764519033872,-151.0,0.00014521,2]
[395179264,1764519033881,-255.0,0.00014595,2]
[395179265,1764519033891,-420.0,0.0001477,2]
[395179266,1764519033901,-600.0,0.00014795,2]
[395179267,1764519033910,-1680.0,0.0001482,2]
[395179268,1764519033921,-225.29829185,0.000149,2]
[395179269,1764519033931,-600.0,0.00015068,2]
[395179270,1764519033940,-1600.0,0.00015125,2]
[395179271,1764519033950,-600.0,0.00015342,2]